bitfinex/quotes_ETHUSD_20250904
["timestamp","ask_amount","ask_price","bid_price","bid_amount"]
[1757029510161,3.15725768,4325.9,4325.8,0.004]
[1757029510870,11.64121905,4325.9,4325.8,0.004]
[1757029511448,12.43321905,4325.9,4325.8,0.004]
[1757029512369,12.43321905,4325.9,4325.8,1e-08]
[1757029514552,10.03325768,4325.9,4325.8,1e-08]
[1757029515889,10.50815768,4325.9,4325.8,1e-08]
[1757029516855,10.03325768,4325.9,4325.8,1e-08]
[1757029517056,6.15725768,4325.9,4325.8,1e-08]
[1757029517365,5.71605768,4325.9,4325.8,1e-08]
[1757029517579,6.47685768,4325.9,4325.8,1e-08]
[1757029517756,9.47685768,4325.9,4325.8,1e-08]
[1757029518089,11.18495768,4325.9,4325.8,1e-08]
[1757029518595,5.60085768,4325.9,4325.8,1e-08]
[1757029518755,9.47785768,4325.9,4325.8,1e-08]
[1757029519150,9.18865768,4325.9,4325.8,1e-08]
[1757029519488,9.18865768,4325.9,4325.8,0.30810001]
[1757029519649,5.31165768,4325.9,4325.8,1e-08]
[1757029519849,9.18965768,4325.9,4325.8,1e-08]
[1757029520077,9.47885768,4325.9,4325.8,1e-08]
[1757029520402,11.18695768,4325.9,4325.8,1e-08]
[1757029521251,10.71205768,4325.9,4325.8,1e-08]
[1757029522880,10.71305768,4325.9,4325.8,1e-08]
[1757029525484,17.08813947,4325.9,4325.8,1e-08]
[1757029525709,6.69218179,4325.4,4325.3,0.004]
[1757029525859,15.88210669,4325.4,4325.3,0.004]
[1757029526055,16.17130669,4325.4,4325.3,0.004]
[1757029526385,16.17130669,4325.4,4324.9,0.004]
[1757029526386,3.10413872,4325.0,4324.9,0.004]
[1757029526585,17.58632051,4325.0,4324.9,0.004]
[1757029526758,18.31672051,4325.0,4324.9,0.004]
[1757029527983,18.40944091,4325.0,4324.9,0.004]
[1757029528287,18.52544091,4325.0,4324.9,0.004]
[1757029529156,12.18405912,4325.0,4324.9,0.004]
[1757029529352,11.89385912,4325.0,4324.9,0.3121]
[1757029529811,7.22485912,4325.0,4324.9,1.2071]
[1757029530084,7.22485912,4325.0,4324.9,0.004]
[1757029530085,12.62425912,4325.0,4324.9,0.004]
[1757029530799,11.10485912,4325.0,4324.9,0.7643]
[1757029531256,8.6777204,4325.0,4324.9,1.2071]
[1757029531459,3.116,4325.0,4324.9,1.2071]
[1757029531654,3.116,4325.0,4324.9,1.33071]
[1757029532088,3.0,4325.0,4324.9,1.33071]
[1757029532657,5.31213872,4325.0,4324.9,0.7643]
[1757029532857,5.42813872,4325.0,4324.9,0.7643]
[1757029537001,3.116,4325.0,4324.9,1.2071]
[1757029537162,6.999,4325.0,4324.9,1.2071]
[1757029537992,6.883,4325.0,4324.9,1.2071]
[1757029538161,9.19513872,4325.0,4324.9,0.7643]
[1757029539092,9.19513872,4325.0,4324.9,1.2173]
[1757029539591,9.19513872,4325.0,4324.9,0.7643]
[1757029540795,9.19513872,4325.0,4324.9,0.3121]
[1757029540994,9.19513872,4325.0,4324.9,0.004]
[1757029541204,9.48603872,4325.0,4324.9,0.004]
[1757029541406,9.92393872,4325.0,4324.9,0.004]
[1757029541791,9.48603872,4325.0,4324.9,0.004]
[1757029542095,9.19513872,4325.0,4324.9,0.004]
[1757029542789,6.882,4325.0,4324.9,0.4714]
[1757029543162,3.0,4325.0,4324.9,0.4714]
[1757029544070,0.001,4325.3,4324.9,0.4714]
[1757029544273,0.001,4325.3,4325.0,0.64005818]
[1757029544476,0.001,4325.3,4325.2,2.31203181]
[1757029544901,0.001,4325.3,4325.2,2.77943181]
[1757029546578,0.001,4325.3,4325.2,0.4674]
[1757029547516,0.001,4325.3,4325.2,2.77943181]
[1757029547705,0.001,4325.3,4325.2,3.74129825]
[1757029548014,0.001,4325.3,4325.2,3.88041856]
[1757029548382,0.001,4325.3,4325.2,3.85729825]
[1757029550613,0.001,4325.3,4325.2,3.88041856]
[1757029551884,0.001,4325.3,4325.2,6.22041856]
[1757029552085,0.001,4325.3,4325.2,3.85729825]
[1757029552303,0.001,4325.3,4325.2,3.88041856]
[1757029556219,0.001,4325.3,4325.2,3.85729825]
[1757029556436,0.001,4325.3,4325.2,7.73629825]
[1757029556786,0.001,4325.3,4325.2,7.62029825]
[1757029556986,0.001,4325.3,4325.2,7.73629825]
[1757029559101,0.001,4325.3,4325.2,13.63648004]
[1757029565033,0.001,4325.3,4325.2,7.73529825]
[1757029565422,0.001,4325.3,4325.2,10.07529825]
[1757029572542,0.001,4325.3,4325.2,7.26489825]
[1757029573847,0.001,4325.3,4325.2,7.71539825]
[1757029577253,0.001,4325.3,4325.2,10.05539825]
[1757029577953,0.001,4325.3,4325.2,10.50089825]
[1757029578950,0.001,4325.3,4325.2,10.05539825]
[1757029579518,0.001,4325.3,4325.2,10.50089825]
[1757029580038,0.001,4325.3,4325.2,10.05539825]
[1757029586345,1.2132,4325.3,4325.2,0.116]
[1757029586528,3.0,4325.2,4324.9,0.004]
[1757029586728,2.31224565,4324.8,4324.7,3.878]
[1757029586925,2.60454565,4324.8,4324.7,3.878]
[1757029587161,3.37144565,4324.8,4324.7,3.878]
[1757029587732,1.0592,4324.8,4324.7,0.004]
[1757029587936,3.37144565,4324.8,4324.7,0.004]
[1757029588249,1.0592,4324.8,4324.7,0.004]
[1757029588641,3.37144565,4324.8,4324.7,0.004]
[1757029589666,1.0592,4324.8,4324.7,0.004]
[1757029590266,3.37144565,4324.8,4324.7,0.004]
[1757029591134,1.0592,4324.8,4324.7,0.004]
[1757029591940,3.37144565,4324.8,4324.7,0.004]
[1757029593538,1.0592,4324.8,4324.7,0.004]
[1757029594177,3.37144565,4324.8,4324.7,0.004]
[1757029594534,1.0592,4324.8,4324.7,0.004]
[1757029594934,3.04954565,4324.8,4324.7,0.004]
[1757029595171,3.37144565,4324.8,4324.7,0.004]
[1757029596036,3.04954565,4324.8,4324.7,0.004]
[1757029598640,0.7373,4324.8,4324.7,0.004]
[1757029599242,3.04954565,4324.8,4324.7,0.004]
[1757029600658,3.37144565,4324.8,4324.7,0.004]
[1757029603054,2.60454565,4324.8,4324.7,0.004]
[1757029603260,3.07324565,4324.8,4324.7,0.004]
[1757029606587,0.2923,4324.8,4324.7,0.004]
[1757029606884,3.0,4325.1,4324.7,0.004]
[1757029607052,3.0,4325.1,4324.7,0.4713]
[1757029607247,5.31219706,4324.9,4324.7,0.4713]
[1757029607448,3.06624565,4324.8,4324.7,0.004]
[1757029611780,3.18224565,4324.8,4324.7,0.004]
[1757029613154,3.18324565,4324.8,4324.7,0.004]
[1757029617901,6.18324565,4324.8,4324.7,0.004]
[1757029618398,5.71454565,4324.8,4324.7,0.004]
[1757029618984,6.18324565,4324.8,4324.7,0.004]
[1757029620389,3.001,4324.8,4324.7,0.7587]
[1757029620688,0.001,4324.8,4324.7,6.33079515]
[1757029621060,0.001,4324.8,4324.7,5.1917]
[1757029622461,0.001,4324.8,4324.7,9.20799911]
[1757029622666,0.001,4324.8,4324.7,10.86224797]
[1757029631976,0.001,4324.8,4324.7,13.20224797]
[1757029632808,0.001,4324.8,4324.7,13.29492111]
[1757029638613,0.001,4324.8,4324.7,22.10101626]
[1757029638818,0.001,4325.3,4325.2,2.31203181]
[1757029638981,0.001,4325.3,4325.2,11.22324727]
[1757029639177,0.001,4325.3,4325.2,12.55622696]
[1757029639378,0.001,4325.3,4325.2,12.64888486]
[1757029640188,0.001,4325.3,4325.2,15.64888486]
[1757029640490,0.001,4325.3,4325.2,18.70879283]
[1757029646417,0.001,4325.3,4325.2,21.04879283]
[1757029649505,0.001,4325.3,4325.2,21.9278563]
[1757029651924,0.001,4325.3,4325.2,19.5878563]
[1757029652935,0.2994,4325.3,4325.2,14.4737563]
[1757029653135,0.2994,4325.3,4325.2,17.5537563]
[1757029653136,0.7339,4325.3,4325.2,17.5537563]
[1757029656120,1.0558,4325.3,4325.2,2.42803181]
[1757029656322,1.0558,4325.3,4325.2,3.988]
[1757029657230,1.0558,4325.3,4325.2,0.116]
[1757029657406,1.0558,4325.3,4325.2,3.988]
[1757029657808,1.0558,4325.3,4325.2,0.116]
[1757029658014,1.0558,4325.3,4325.2,3.988]
[1757029658234,1.0558,4325.3,4325.2,0.116]
[1757029658432,1.0558,4325.3,4324.7,0.004]
[1757029658433,1.0558,4325.3,4324.8,0.116]
[1757029658626,1.0558,4325.3,4324.9,3.872]
[1757029658829,0.7778,4325.2,4324.9,3.872]
[1757029659036,2.61863872,4325.0,4324.8,3.872]
[1757029659258,3.08999218,4324.9,4324.8,3.872]
[1757029659409,3.39649517,4324.9,4324.7,3.876]
[1757029660834,1.0843,4324.8,4324.7,0.004]
[1757029662911,0.3065,4324.8,4324.7,0.004]
[1757029663109,0.3065,4324.8,4324.7,3.59201497]
[1757029663309,0.7624,4324.8,4324.7,1.27971586]
[1757029663546,0.7624,4324.8,4324.7,1.60261586]
[1757029663917,0.001,4325.3,4325.1,2.31203622]
[1757029664141,0.001,4325.3,4325.2,3.873]
[1757029664311,0.001,4325.3,4325.2,3.989]
[1757029664510,0.7634,4325.3,4325.2,3.989]
[1757029664706,0.7634,4325.3,4325.2,6.30103181]
[1757029664907,0.7634,4325.3,4325.2,3.989]
[1757029673560,0.7634,4325.3,4325.2,6.30103181]
[1757029673756,0.3075,4325.3,4325.2,6.30103181]
[1757029674270,0.001,4325.3,4325.2,9.0632599]
[1757029674460,0.001,4325.3,4325.2,11.2231599]
[1757029675770,0.001,4325.3,4325.2,10.7636599]
[1757029676553,0.3075,4325.3,4325.2,6.1108599]
[1757029676869,0.3075,4325.3,4325.2,9.9828599]
[1757029677174,0.3075,4325.3,4325.2,6.1479]
[1757029677373,0.7634,4325.3,4325.2,6.1479]
[1757029677885,0.7634,4325.3,4325.2,2.2759]
[1757029678062,0.7634,4325.3,4325.2,5.692]
[1757029678385,0.7634,4325.3,4325.2,5.576]
[1757029685414,0.001,4325.3,4325.2,8.78383181]
[1757029685582,0.001,4325.3,4325.2,10.63306627]
[1757029685786,0.001,4325.3,4325.2,11.32811164]
[1757029686689,0.001,4325.3,4324.7,0.004]
[1757029686690,0.792,4325.2,4323.8,0.025]
[1757029686878,0.792,4325.2,4321.8,0.025]
[1757029686879,3.792,4323.8,4321.8,0.025]
[1757029687073,6.41176193,4322.9,4321.8,0.025]
[1757029687500,6.95626193,4322.9,4321.8,1.888]
[1757029688809,2.3136901,4322.1,4321.8,1.888]
[1757029689022,2.66105911,4322.1,4321.8,0.025]
[1757029689190,3.38375911,4322.1,4321.8,0.025]
[1757029690098,7.17575911,4322.1,4321.8,0.025]
[1757029696543,7.28575911,4322.1,4321.8,0.025]
[1757029698516,0.792,4321.3,4320.8,0.025]
[1757029698715,3.10633266,4320.9,4320.8,0.025]
[1757029698917,10.44625954,4320.9,4320.8,0.025]
[1757029699123,11.09040167,4320.9,4320.8,0.025]
[1757029702244,3.0,4320.9,4320.8,0.025]
[1757029702439,5.33745954,4320.9,4320.8,0.7958]
[1757029702640,5.31433266,4320.9,4320.8,0.7958]
[1757029702834,3.0,4320.9,4320.8,0.7958]
[1757029703234,5.31433266,4320.9,4320.8,0.7958]
[1757029703959,5.60113266,4320.9,4320.8,0.025]
[1757029705362,5.31433266,4320.9,4320.8,0.025]
[1757029705570,3.0,4320.9,4320.8,0.7958]
[1757029705934,2.31411285,4321.4,4320.8,1.2478]
[1757029706270,6.33809761,4321.4,4320.9,0.9235]
[1757029706446,6.33809761,4321.4,4321.3,0.2993]
[1757029706645,2.31409761,4321.4,4321.3,0.2993]
[1757029706966,3.0,4321.6,4321.3,0.7708]
[1757029707140,2.76601298,4321.5,4321.3,0.2993]
[1757029707337,0.452,4321.5,4321.3,0.7513]
[1757029707539,1.0788,4321.4,4316.9,5.331]
[1757029707742,0.792,4320.0,4319.8,0.025]
[1757029708070,2.31540438,4318.9,4318.8,0.4965]
[1757029708271,2.31540438,4318.9,4318.8,1.2478]
[1757029708637,0.116,4318.9,4318.8,1.2478]
[1757029709038,2.43140438,4318.9,4318.8,1.2478]
[1757029709674,0.116,4318.9,4318.8,1.2478]
[1757029709971,2.43140438,4318.9,4318.8,1.2478]
[1757029710169,2.43140438,4318.9,4318.8,0.7958]
[1757029710473,2.31540438,4318.9,4318.8,0.7958]
[1757029710862,0.69627296,4319.0,4318.8,0.7958]
[1757029711061,0.69627296,4319.0,4318.9,0.4715]
[1757029711241,2.60220438,4318.9,4318.8,0.025]
[1757029711440,3.41733126,4318.9,4318.8,0.025]
[1757029712375,2.31562159,4318.5,4318.1,0.0022456]
[1757029712555,2.31567622,4318.4,4318.1,0.0022456]
[1757029712749,2.31562086,4318.5,4318.1,0.0022456]
[1757029713061,0.4965,4318.3,4318.1,0.4737456]
[1757029713373,0.2868,4318.2,4318.1,0.0022456]
[1757029713571,0.4965,4318.3,4318.2,1.2228]
[1757029713771,0.4965,4318.3,4318.2,0.7708]
[1757029713940,0.4965,4318.3,4317.8,0.477]
[1757029714142,0.4965,4318.3,4317.8,0.025]
[1757029714362,0.2868,4317.9,4317.8,0.025]
[1757029714554,2.31579686,4318.2,4317.8,0.477]
[1757029714749,0.4965,4318.3,4317.8,0.3243]
[1757029714966,2.81222774,4318.3,4317.9,0.452]
[1757029715272,2.81226864,4318.3,4317.9,0.452]
[1757029715457,0.4965,4318.3,4317.9,0.452]
[1757029715659,0.4965,4318.3,4318.2,0.2993]
[1757029716472,0.4965,4318.3,4318.2,1.2228]
[1757029716669,4.07,4318.9,4318.2,1.2228]
[1757029716871,2.31546786,4318.8,4318.2,1.2228]
[1757029717052,2.31556522,4318.6,4318.2,0.7708]
[1757029717249,0.71941762,4318.7,4318.2,0.7708]
[1757029717250,0.02312688,4318.5,4318.2,0.7708]
[1757029717454,2.33869676,4318.6,4318.3,0.4715]
[1757029717654,2.31556988,4318.6,4318.3,0.4715]
[1757029718054,2.33863284,4318.8,4318.3,0.4715]
[1757029718265,0.02312688,4318.8,4318.3,0.4715]
[1757029718454,0.4715,4318.5,4318.3,0.4715]
[1757029718655,0.4715,4318.5,4318.4,0.2993]
[1757029718856,1.706,4319.0,4318.4,1.2122]
[1757029719057,4.069,4318.9,4318.4,1.2122]
[1757029719252,4.069,4318.9,4318.5,0.9129]
[1757029719576,4.069,4318.9,4318.8,0.3094]
[1757029719762,6.38440438,4318.9,4318.8,0.3094]
[1757029719961,6.38440438,4318.9,4317.9,2.31593652]
[1757029720371,0.116,4318.5,4318.0,2.31587494]
[1757029720575,0.116,4318.5,4318.4,0.3094]
[1757029724767,0.116,4318.5,4318.1,0.4646]
[1757029725664,0.3092,4318.2,4317.9,0.116]
[1757029725896,0.4579,4318.1,4317.8,0.025]
[1757029726495,2.33880497,4318.4,4317.8,0.025]
[1757029726693,0.4579,4318.1,4317.8,0.025]
[1757029728000,0.116,4318.5,4318.0,0.3094]
[1757029728197,0.116,4318.5,4317.9,2.31593672]
[1757029728397,0.116,4318.5,4317.8,3.33904983]
[1757029728898,0.116,4318.5,4317.9,2.3159071]
[1757029729500,0.116,4318.5,4318.4,2.31567247]
[1757029729678,0.116,4318.5,4318.4,11.07267247]
[1757029729880,0.04812688,4319.8,4318.5,3.0]
[1757029730201,0.16412688,4319.8,4319.2,2.3152412]
[1757029730806,0.141,4319.8,4319.1,2.43128067]
[1757029731183,0.141,4319.8,4319.1,0.116]
[1757029732898,0.141,4319.8,4319.3,2.31518143]
[1757029733221,0.141,4319.8,4319.3,2.77978143]
[1757029735030,0.792,4319.3,4317.8,0.025]
[1757029735344,0.792,4319.3,4317.2,0.004]
[1757029735345,3.10826247,4317.3,4317.2,0.004]
[1757029735556,3.13138935,4317.3,4317.2,0.004]
[1757029735854,4.35118935,4317.3,4317.2,0.004]
[1757029736165,4.46718935,4317.3,4317.2,0.004]
[1757029738332,7.46718935,4317.3,4317.2,0.004]
[1757029738527,7.44406247,4317.3,4317.2,0.004]
[1757029739790,2.3164771,4316.9,4315.8,0.025]
[1757029739976,8.32260398,4316.9,4315.8,0.025]
[1757029740299,9.5192771,4316.9,4315.8,0.025]
[1757029740897,12.5172771,4316.9,4315.8,0.025]
[1757029741062,13.3072771,4316.9,4315.8,0.025]
[1757029741393,2.1597,4317.6,4316.0,0.4646]
[1757029741595,0.7671,4316.9,4316.0,0.4646]
[1757029741965,0.02312688,4316.9,4316.0,0.4646]
[1757029742482,2.33960398,4316.9,4316.0,0.4646]
[1757029742693,2.64880398,4316.9,4316.0,0.4646]
[1757029742995,0.02312688,4316.9,4316.0,0.4646]
[1757029743292,0.02312688,4316.9,4316.8,0.3344]
[1757029743499,0.4527,4317.7,4316.8,0.3344]
[1757029743500,0.02312688,4317.6,4316.8,1.1683]
[1757029744685,0.02312688,4317.7,4316.8,1.1683]
[1757029744996,2.33917656,4317.7,4316.8,1.1683]
[1757029745420,2.31612385,4317.6,4316.8,1.1683]
[1757029745587,0.02312688,4317.8,4316.8,1.1683]
[1757029745758,2.33917137,4317.8,4316.8,1.1683]
[1757029745962,2.31612243,4317.6,4316.8,1.1683]
[1757029746970,2.31610094,4317.7,4316.8,1.1683]
[1757029747171,2.3160731,4317.7,4316.8,1.1683]
[1757029747370,2.33919998,4317.7,4316.8,1.1683]
[1757029747581,2.31610804,4317.6,4316.8,1.1683]
[1757029747997,2.31611072,4317.6,4316.8,1.1683]
[1757029748201,0.02312688,4317.7,4316.8,3.48482827]
[1757029748499,2.31599434,4317.8,4316.8,3.48483017]
[1757029748868,0.02312688,4318.0,4316.9,2.31647283]
[1757029749065,2.31600445,4317.8,4316.8,1.1683]
[1757029749603,2.31600445,4317.8,4316.9,2.3164749]
[1757029749903,2.31600466,4317.8,4316.8,0.4896]
[1757029750429,2.31605473,4317.7,4316.8,0.4896]
[1757029750606,2.31605473,4317.7,4316.9,2.3164764]
[1757029751002,2.31605473,4317.7,4316.8,2.80612682]
[1757029751203,0.116,4317.4,4316.8,2.80612682]
[1757029751501,0.116,4317.4,4317.3,0.3008]
[1757029753710,0.116,4317.4,4316.8,2.81012379]
[1757029754787,0.116,4317.4,4317.3,0.3008]
[1757029755296,0.116,4317.4,4316.8,2.81012379]
[1757029755478,0.116,4317.4,4317.3,0.3008]
[1757029755682,0.35931041,4317.4,4317.3,0.3008]
[1757029756516,0.116,4317.4,4317.3,0.3008]
[1757029758022,0.116,4317.4,4316.8,0.4936]
[1757029758926,0.116,4317.4,4317.3,0.3008]
[1757029761035,0.792,4317.3,4316.7,1e-08]
[1757029761221,0.792,4317.3,4315.8,0.025]
[1757029761222,3.10901383,4315.9,4315.8,0.025]
[1757029761515,8.52131383,4315.9,4315.8,0.025]
[1757029761678,8.78996119,4315.9,4315.8,0.025]
[1757029762888,4.64296119,4315.9,4315.8,0.025]
[1757029763088,8.78796119,4315.9,4315.8,0.025]
[1757029764683,3.85096119,4315.9,4315.8,0.025]
[1757029764883,8.01808807,4315.9,4315.8,0.025]
[1757029765197,7.99496119,4315.9,4315.8,0.025]
[1757029767010,2.88716119,4315.9,4315.8,0.025]
[1757029767222,1.707,4316.1,4315.8,0.3258]
[1757029767605,2.31701383,4315.9,4315.8,0.3258]
[1757029767807,1.707,4316.1,4315.8,0.3258]
[1757029768003,2.31701383,4315.9,4315.8,0.3258]
[1757029768207,1.707,4316.1,4315.8,0.3258]
[1757029768426,2.31701383,4315.9,4315.8,0.3258]
[1757029771025,4.13,4316.0,4315.8,0.3258]
[1757029771210,0.116,4315.9,4315.8,0.3258]
[1757029772291,2.43301383,4315.9,4315.8,0.3298]
[1757029772952,0.116,4315.9,4315.8,0.3298]
[1757029774300,2.43301383,4315.9,4315.8,0.3298]
[1757029774506,0.792,4314.8,4312.8,0.025]
[1757029774804,0.792,4314.6,4313.2,0.02333807]
[1757029775125,7.64112688,4314.7,4312.8,0.025]
[1757029775126,2.31862551,4312.9,4312.8,0.025]
[1757029775628,4.243,4313.6,4312.8,0.3258]
[1757029775929,0.02312688,4313.5,4312.8,0.3258]
[1757029776093,2.31847876,4313.2,4312.8,0.3258]
[1757029776294,0.49522688,4313.1,4312.8,0.025]
[1757029776532,2.81374523,4313.1,4312.8,0.025]
[1757029777055,0.3015,4312.9,4312.8,0.025]
[1757029777266,0.4721,4313.0,4312.8,0.025]
[1757029777726,0.3015,4312.9,4312.8,0.025]
[1757029778050,3.09222551,4312.9,4312.8,0.025]
[1757029778351,3.60705239,4312.9,4312.8,0.025]
[1757029779932,7.84905239,4312.9,4312.8,0.025]
[1757029780254,7.82592551,4312.9,4312.8,0.025]
[1757029781159,4.236,4313.0,4312.8,0.025]
[1757029781555,0.02312688,4312.9,4312.8,0.025]
[1757029781725,0.31992688,4312.9,4312.8,0.025]
[1757029781931,0.02312688,4312.9,4312.8,0.025]
[1757029782151,4.235,4312.9,4312.8,0.025]
[1757029782361,4.25812688,4312.9,4312.8,0.025]
[1757029782556,4.235,4312.9,4312.8,0.025]
[1757029782757,1.708,4313.3,4312.8,0.3353]
[1757029782969,4.25912688,4313.2,4312.8,0.3353]
[1757029783329,6.57761334,4313.2,4312.8,0.025]
[1757029783623,4.6763,4313.2,4312.8,0.025]
[1757029784130,4.6763,4313.1,4312.8,0.025]
[1757029784335,6.99482306,4313.1,4312.8,0.025]
[1757029784536,0.116,4312.9,4312.8,0.025]
[1757029784959,0.13912688,4312.9,4312.8,0.025]
[1757029785332,0.116,4312.9,4312.8,0.025]
[1757029785568,0.43592688,4312.9,4312.8,0.025]
[1757029786064,0.4128,4312.9,4312.8,0.025]
[1757029786366,0.43592688,4312.9,4312.8,0.025]
[1757029786748,0.4128,4312.9,4312.8,0.025]
[1757029787277,0.116,4312.9,4312.8,0.025]
[1757029787440,4.341,4312.9,4312.8,0.025]
[1757029789364,4.6378,4312.9,4312.8,0.025]
[1757029790365,4.331,4312.9,4312.8,0.025]
[1757029791738,0.116,4312.9,4312.8,0.3353]
[1757029791941,0.4697,4314.1,4312.8,11.13761181]
[1757029792142,0.116,4313.9,4313.5,10.03689777]
[1757029792371,0.116,4313.9,4313.3,0.116]
[1757029792577,0.025,4314.8,4313.8,0.3103]
[1757029792747,0.116,4314.2,4313.9,2.31808394]
[1757029792946,0.116,4314.2,4314.1,0.3103]
[1757029796850,0.116,4314.7,4314.3,2.31784211]
[1757029797049,0.025,4314.8,4314.6,0.3103]
[1757029800449,0.025,4314.8,4314.7,3.21595823]
[1757029800952,0.025,4314.8,4314.7,3.52625823]
[1757029801359,0.025,4314.8,4314.7,3.12795823]
[1757029802259,0.025,4314.8,4314.6,1.15071978]
[1757029802260,0.3218,4314.8,4314.6,1.15071978]
[1757029802597,0.3218,4314.8,4313.5,2.31825101]
[1757029802598,0.91,4314.7,4313.5,2.31825101]
[1757029802795,3.22770605,4314.7,4313.6,2.31823718]
[1757029803088,0.4403,4314.6,4313.4,3.0]
[1757029803273,2.31781232,4314.5,4313.4,3.0]
[1757029803575,0.91,4314.4,4313.4,2.31835674]
[1757029803877,3.22783077,4314.4,4313.5,2.31828605]
[1757029804781,0.91,4314.4,4313.6,2.31824537]
[1757029805381,0.91,4314.4,4313.4,5.31835018]
[1757029805772,0.91,4314.4,4313.6,2.31819676]
[1757029806281,3.22782355,4314.4,4313.5,2.31829963]
[1757029806483,3.22782355,4314.4,4313.6,2.31824415]
[1757029806679,0.91,4314.4,4313.6,2.31824415]
[1757029806978,0.025,4314.8,4314.3,0.3103]
[1757029807379,0.4653,4314.8,4314.3,0.3103]
[1757029808492,0.025,4314.8,4314.3,0.3103]
[1757029808674,0.025,4314.8,4314.4,0.5]
[1757029809007,0.025,4314.8,4314.4,3.21607281]
[1757029809155,0.025,4314.8,4314.7,0.309]
[1757029811866,0.026,4314.8,4314.7,0.309]
[1757029812682,0.026,4314.8,4314.7,0.425]
[1757029813393,0.026,4314.8,4314.7,2.74265823]
[1757029814701,0.026,4314.8,4314.7,3.23685823]
[1757029814904,0.026,4314.8,4314.7,3.63515823]
[1757029815404,0.026,4314.8,4314.7,6.63515823]
[1757029815700,0.026,4314.8,4314.7,8.53413778]
[1757029816399,0.026,4314.8,4314.7,12.70713778]
[1757029818300,0.3178,4314.8,4314.7,0.116]
[1757029818599,0.026,4314.8,4314.7,0.309]
[1757029819588,0.026,4314.8,4314.6,4.172]
[1757029821307,0.2918,4314.7,4314.6,4.172]
[1757029821487,0.2918,4314.7,4314.6,4.166]
[1757029821683,1.2193,4314.7,4314.6,4.166]
[1757029822480,0.7357,4314.7,4314.6,4.166]
[1757029822809,0.026,4314.8,4314.6,4.475]
[1757029823206,1.2193,4314.7,4314.4,4.161]
[1757029823386,0.2918,4314.7,4314.4,4.161]
[1757029823796,0.026,4314.8,4314.5,2.31776529]
[1757029823978,0.026,4314.8,4314.7,0.309]
[1757029824184,0.026,4314.8,4314.7,4.468]
[1757029824682,0.026,4314.8,4314.7,6.78565823]
[1757029825493,0.026,4314.8,4314.7,4.468]
[1757029825704,0.026,4314.8,4314.7,4.159]
[1757029825917,0.026,4314.8,4314.7,4.468]
[1757029826807,0.026,4314.8,4314.7,7.46422873]
[1757029827008,0.026,4314.8,4314.7,7.95842873]
[1757029827313,0.026,4314.8,4314.7,7.46422873]
[1757029827917,0.026,4314.8,4314.7,10.46422873]
[1757029828214,0.026,4314.8,4314.7,11.35672873]
[1757029828381,0.026,4314.8,4314.7,11.47272873]
[1757029830391,0.026,4314.8,4314.7,11.07442873]
[1757029831613,0.026,4314.8,4314.7,24.48990147]
[1757029832306,0.026,4314.8,4314.7,23.99570147]
[1757029832897,0.026,4314.8,4314.7,24.48990147]
[1757029833218,0.026,4314.8,4314.7,24.39400147]
[1757029833418,0.026,4314.8,4314.7,23.99570147]
[1757029837614,0.026,4314.8,4314.7,20.64602483]
[1757029841520,0.4439,4315.6,4314.9,0.792]
[1757029841822,0.4439,4315.6,4314.7,19.2238666]
[1757029841823,0.025,4315.8,4315.5,5.03289805]
[1757029842020,0.025,4315.8,4315.7,0.116]
[1757029842219,0.4885,4315.8,4315.7,0.116]
[1757029842421,0.7968,4315.8,4315.7,0.116]
[1757029842623,0.3333,4315.8,4315.7,2.4331212]
[1757029842823,0.025,4315.8,4315.7,3.76212313]
[1757029843527,0.3333,4315.8,4315.7,3.76212313]
[1757029845554,0.3333,4315.8,4315.7,6.76212313]
[1757029846423,0.7968,4315.8,4315.7,6.76212313]
[1757029847002,0.025,4315.8,4315.7,6.76212313]
[1757029847425,0.025,4315.8,4315.7,12.09112118]
[1757029849104,0.025,4315.8,4315.7,11.79502118]
[1757029849312,1.2716,4315.8,4315.7,0.116]
[1757029849516,3.58866762,4315.8,4315.7,4.1]
[1757029849737,1.2716,4315.8,4314.2,4.1]
[1757029849905,0.116,4315.0,4314.3,5.14889805]
[1757029850244,0.3083,4314.4,4314.3,5.14889805]
[1757029850417,1.2466,4314.4,4314.3,5.14889805]
[1757029850816,1.2466,4314.4,4314.3,5.15289805]
[1757029851019,1.2466,4314.4,4314.3,5.8314555]
[1757029851504,1.2466,4314.4,4314.3,0.79855745]
[1757029852917,0.3083,4314.4,4314.3,14.22110054]
[1757029853149,0.7718,4314.4,4314.3,14.22110054]
[1757029853348,1.2466,4314.4,4314.3,14.22110054]
[1757029856045,0.7718,4314.4,4314.3,14.22110054]
[1757029857117,0.7718,4314.4,4314.3,0.79855745]
[1757029857317,1.2466,4314.4,4314.3,0.12]
[1757029858956,1.2466,4314.4,4314.3,0.004]
[1757029862860,0.3083,4314.4,4314.3,2.32187311]
[1757029863035,0.116,4314.6,4314.3,0.3001]
[1757029863430,0.116,4314.6,4314.3,4.3821]
[1757029863626,0.4748,4314.9,4314.3,4.3821]
[1757029863965,0.4635,4314.8,4314.3,4.202]
[1757029864152,0.3083,4314.4,4314.3,4.202]
[1757029864459,1.2466,4314.4,4314.3,4.202]
[1757029864867,1.2466,4314.4,4314.3,0.004]
[1757029865243,1.26972688,4314.4,4314.3,0.004]